bitfinex-derivatives/quotes_ETHF0:USTF0_20250115
["timestamp","ask_amount","ask_price","bid_price","bid_amount"]
[1736982753877,0.58403,3424.3,3424.0,0.58407]
[1736982754471,2.32201623,3424.5,3423.9,41.2599]
[1736982754671,2.90601623,3424.5,3424.3,0.58401]
[1736982754873,2.90601623,3424.5,3424.2,0.58403]
[1736982755078,2.90601623,3424.5,3423.9,41.2599]
[1736982755373,0.58401,3424.4,3424.2,0.58403]
[1736982755575,2.32201623,3424.5,3424.2,0.58403]
[1736982755766,0.58402,3424.4,3424.2,0.58403]
[1736982756478,0.58406,3424.1,3423.9,1.04398]
[1736982756971,0.58406,3424.1,3423.9,41.84398]
[1736982757372,5.52981623,3424.2,3423.9,41.2599]
[1736982757567,0.58409,3423.9,3423.8,0.4829]
[1736982759379,0.58416,3423.5,3423.4,0.4557]
[1736982759780,0.58416,3423.5,3423.4,41.2557]
[1736982759973,0.5842,3423.3,3423.2,0.4793]
[1736982760171,2.90621623,3423.3,3423.2,0.4793]
[1736982760479,2.90621623,3423.3,3423.2,41.2793]
[1736982761071,2.90621623,3423.3,3423.2,0.4793]
[1736982761474,5.52981623,3423.3,3422.2,4.57479408]
[1736982761776,2.32201623,3422.8,3422.4,0.9031]
[1736982761980,0.58433,3422.5,3422.4,0.9031]
[1736982762279,2.90634623,3422.5,3422.4,0.9031]
[1736982762473,2.90634623,3422.5,3422.4,0.4394]
[1736982762776,2.90635623,3422.5,3422.3,41.38436]
[1736982762982,3.2078,3423.3,3422.3,42.26091]
[1736982763175,3.2078,3423.3,3422.5,3.2078]
[1736982763373,0.58422,3423.2,3423.0,0.58424]
[1736982763575,4.23761,3423.3,3423.1,0.58422]
[1736982763977,3.6534,3423.3,3422.5,3.2078]
[1736982764171,3.2078,3423.3,3423.2,0.58421]
[1736982764382,6.11394623,3423.7,3422.8,1.46067]
[1736982764679,6.11394623,3423.7,3423.5,0.58415]
[1736982764881,5.52981623,3423.7,3423.6,0.9209]
[1736982765076,6.11394623,3423.7,3423.6,0.9209]
[1736982765579,6.11394623,3423.7,3423.6,41.7209]
[1736982765770,6.11394623,3423.7,3423.6,40.8]
[1736982766370,6.11394623,3423.7,3423.5,0.58415]
[1736982766976,5.52981623,3423.7,3423.1,0.9609]
[1736982767172,0.58416,3423.6,3423.4,0.58417]
[1736982767375,6.11394623,3423.7,3423.2,0.58421]
[1736982767577,3.2078,3423.7,3423.6,0.58414]
[1736982767773,3.2078,3423.7,3423.5,0.58415]
[1736982767774,3.79194,3423.7,3423.5,0.58415]
[1736982767974,3.79194,3423.7,3423.1,0.9609]
[1736982768175,3.2078,3423.7,3423.1,0.9609]
[1736982768384,3.2078,3423.7,3423.6,0.58414]
[1736982768886,5.97541623,3424.2,3424.1,0.58406]
[1736982769577,0.58398,3424.6,3424.4,0.584]
[1736982769773,2.32201623,3424.5,3424.4,0.584]
[1736982770288,2.32201623,3424.5,3424.3,0.58401]
[1736982770289,2.90601623,3424.5,3424.3,0.58401]
[1736982770584,2.32201623,3424.5,3423.7,4.6141]
[1736982770782,2.32201623,3424.2,3424.1,0.58405]
[1736982774288,2.90600623,3424.5,3423.8,1.46027]
[1736982774489,2.90600623,3424.5,3424.3,0.58402]
[1736982774789,2.90600623,3424.5,3424.4,0.4804]
[1736982775591,2.90600623,3424.5,3424.4,1.06441]
[1736982775887,2.90600623,3424.5,3424.4,0.4804]
[1736982782498,9.64403246,3424.5,3423.2,44.0078]
[1736982782700,3.2078,3423.5,3423.4,1.02057]
[1736982782899,3.79196,3423.5,3423.4,0.4364]
[1736982783107,3.79196,3423.5,3423.4,1.02058]
[1736982786304,3.79196,3423.5,3423.4,0.4364]
[1736982786708,3.79196,3423.5,3423.4,1.02058]
[1736982787708,3.2078,3423.5,3423.4,1.02058]
[1736982788211,3.79196,3423.5,3423.4,1.02058]
[1736982792715,3.79196,3423.5,3423.4,0.4364]
[1736982793110,3.2078,3423.5,3422.9,0.58426]
[1736982793319,3.2078,3423.5,3423.0,0.58424]
[1736982793320,0.58424,3423.1,3423.0,0.58424]
[1736982793508,0.58424,3423.1,3423.0,40.8]
[1736982793817,2.32201623,3423.4,3422.9,0.58426]
[1736982793818,0.58425,3423.0,3422.9,0.58426]
[1736982794416,0.58424,3423.1,3423.0,0.58424]
[1736982794717,0.58425,3423.0,3422.9,40.8]
[1736982794917,0.58425,3423.0,3422.9,41.38426]
[1736982795714,2.32201623,3423.4,3423.1,0.58422]
[1736982796018,3.2078,3423.5,3423.4,0.58418]
[1736982796019,3.79197,3423.5,3423.4,0.58418]
[1736982796219,0.5842,3423.4,3422.9,40.8]
[1736982796420,0.5842,3423.4,3423.3,0.5842]
[1736982797420,0.5842,3423.4,3422.9,40.8]
[1736982797421,3.79196,3423.5,3423.4,0.58418]
[1736982799215,2.32201623,3423.7,3422.9,40.8]
[1736982799216,2.32201623,3424.0,3423.2,3.2078]
[1736982799524,0.4672,3424.1,3423.6,3.2078]
[1736982799723,5.52981623,3424.4,3423.7,0.9267]
[1736982799916,6.11382623,3424.4,3424.2,0.58403]
[1736982800111,6.11382623,3424.4,3424.3,0.4602]
[1736982800420,6.11382623,3424.4,3424.3,1.04423]
[1736982800722,5.52981623,3424.4,3424.3,1.04423]
[1736982801315,6.11382623,3424.4,3424.3,1.04423]
[1736982802013,2.32201623,3424.4,3424.3,1.04423]
[1736982803918,2.90602623,3424.4,3424.3,1.04423]
[1736982805722,2.32201623,3424.4,3424.3,1.04423]
[1736982806219,3.2078,3425.3,3424.3,0.4602]
[1736982806424,4.24195,3425.3,3424.5,3.2078]
[1736982806625,3.6581,3425.3,3424.5,3.2078]
[1736982806815,4.24196,3425.3,3425.1,0.58389]
[1736982807117,0.5839,3425.1,3424.9,0.58391]
[1736982807423,2.32201623,3425.0,3424.9,0.58392]
[1736982817522,3.6581,3425.3,3424.8,0.4834]
[1736982817726,3.2078,3425.3,3425.2,0.58387]
[1736982819228,3.35830623,3425.7,3425.5,0.58381]
[1736982820527,0.5838,3425.6,3425.5,0.58381]
[1736982821128,0.5838,3425.6,3425.4,0.58383]
[1736982821723,0.58382,3425.5,3425.4,0.58383]
[1736982823727,0.58381,3425.6,3425.5,0.58381]
[1736982823928,5.52981623,3425.7,3425.0,0.4695]
[1736982824128,3.2078,3425.7,3425.6,0.5838]
[1736982824928,3.2078,3425.7,3425.0,0.4695]
[1736982825328,3.79159,3425.7,3425.6,0.5838]
[1736982826040,3.2078,3425.7,3425.6,0.5838]
[1736982826524,3.2078,3425.7,3425.6,41.3838]
[1736982826734,3.2078,3426.1,3425.6,40.8]
[1736982827029,0.58376,3425.9,3425.8,0.58376]
[1736982828419,3.2078,3426.1,3425.7,0.9218]
[1736982828627,0.58377,3425.8,3425.7,1.50558]
[1736982829232,0.58377,3425.9,3425.8,0.58377]
[1736982830632,1.45939,3425.9,3424.9,3.2078]
[1736982830926,0.58391,3425.0,3424.9,4.1341]
[1736982831122,0.58391,3425.0,3424.9,4.71802]
[1736982831321,0.58391,3425.0,3424.9,4.1341]
[1736982831520,2.90591623,3425.1,3425.0,0.58391]
[1736982831727,0.5839,3425.1,3425.0,0.58391]
[1736982831928,0.4598,3425.4,3424.9,4.1341]
[1736982832729,1.04364,3425.4,3425.3,0.58385]
[1736982833426,0.4598,3425.4,3425.3,0.58385]
[1736982833632,0.58386,3425.3,3425.2,0.58386]
[1736982835032,1.04365,3425.4,3425.3,0.58385]
[1736982835230,0.4598,3425.4,3425.3,0.58385]
[1736982835427,3.2078,3425.6,3424.9,4.1341]
[1736982835627,3.79161,3425.6,3425.5,0.58382]
[1736982835930,3.2078,3425.6,3425.4,0.58383]
[1736982836127,3.79161,3425.6,3425.5,0.4785]
[1736982841037,0.58377,3425.8,3425.6,0.5838]
[1736982841235,0.58377,3425.9,3425.8,0.58377]
[1736982841438,0.58377,3425.8,3425.7,4.25758]
[1736982841831,0.4544,3426.0,3425.9,0.58375]
[1736982842033,2.32201623,3426.3,3425.7,41.266]
[1736982842227,0.4544,3425.9,3425.7,41.266]
[1736982842438,0.58377,3425.8,3425.7,40.8]
[1736982842737,0.58377,3425.8,3425.5,1.06231]
[1736982842939,0.5838,3425.6,3425.5,1.06231]
[1736982843135,0.5838,3425.6,3425.5,41.86231]
[1736982843834,0.58379,3425.7,3425.6,0.5838]
[1736982844735,0.5838,3425.6,3425.5,41.2785]
[1736982844940,0.5838,3425.6,3425.5,40.8]
[1736982845439,3.2078,3425.7,3425.3,0.9038]
[1736982845640,0.5838,3425.6,3425.4,0.58383]
[1736982846038,0.5838,3425.6,3425.4,41.38383]
[1736982846235,0.58382,3425.5,3425.4,40.8]
[1736982846740,0.58382,3425.5,3425.4,41.38383]
[1736982847040,5.52981623,3425.7,3425.1,0.4788]
[1736982847339,1.03804,3425.4,3425.3,0.58385]
[1736982847535,1.03804,3425.4,3425.3,41.38385]
[1736982848042,0.4542,3425.4,3425.3,40.8]
[1736982848239,0.4542,3425.4,3425.3,41.38385]
[1736982848943,0.4542,3425.4,3425.3,0.58385]
[1736982850843,1.03804,3425.4,3425.3,0.58385]
[1736982851635,5.52981623,3425.7,3425.4,0.58383]
[1736982851840,1.03391,3425.6,3425.5,0.58382]
[1736982852039,3.2078,3425.7,3425.2,40.8]
[1736982852239,3.2078,3425.7,3425.6,0.5838]
[1736982853943,3.79159,3425.7,3425.6,0.5838]
[1736982854148,3.2078,3425.7,3425.6,0.5838]
[1736982854848,0.58377,3425.8,3425.7,0.58379]
[1736982855945,0.4501,3426.0,3425.9,0.58375]
[1736982857242,1.03384,3426.0,3425.9,0.58375]
[1736982857841,0.4501,3426.0,3425.9,0.58375]
[1736982858545,2.90571623,3426.3,3426.2,0.5837]
[1736982858746,2.32201623,3426.3,3425.7,3.6857]
[1736982858948,2.90570623,3426.3,3426.2,0.5837]
[1736982859345,0.58371,3426.2,3426.1,0.58371]
[1736982859548,2.32201623,3426.3,3425.7,3.6857]
[1736982859748,3.6464,3426.5,3426.4,0.58367]
[1736982861150,3.6464,3426.5,3425.8,1.45943]
[1736982861343,0.58367,3426.4,3426.3,0.58368]
[1736982861851,0.58367,3426.4,3426.3,41.38368]
[1736982862045,3.6464,3426.5,3426.3,40.8]
[1736982862648,4.23006,3426.5,3426.4,0.58367]
[1736982863458,4.23006,3426.5,3426.4,1.97957]
[1736982863841,2.90565623,3426.6,3426.5,0.58365]
[1736982865051,0.58365,3426.5,3426.4,1.97956]
[1736982868747,2.90565623,3426.6,3426.5,0.58365]
[1736982870349,6.01351623,3426.9,3426.4,1.3959]
[1736982870553,0.58361,3426.8,3426.7,0.58361]
[1736982871256,6.01351623,3426.9,3426.4,1.3959]
[1736982871461,6.59709623,3426.9,3426.8,0.5836]
[1736982872459,2.32201623,3427.5,3426.6,3.78106623]
[1736982872763,3.2078,3427.7,3426.9,2.32201623]
[1736982872963,3.35421623,3428.0,3427.9,0.58341]
[1736982873159,0.4488,3428.0,3427.9,0.58341]
[1736982873354,3.2078,3428.2,3427.4,42.25875]
[1736982873558,3.2078,3428.2,3428.1,0.58338]
[1736982873861,0.4488,3428.6,3428.5,0.58331]
[1736982874253,6.11308623,3428.8,3428.5,40.8]
[1736982874254,3.2078,3428.8,3428.5,40.8]
[1736982874449,0.4662,3429.0,3428.5,40.8]
[1736982874656,0.4662,3429.0,3428.9,0.58324]
[1736982875055,3.2078,3429.2,3428.6,0.9148]
[1736982875260,3.791,3429.2,3428.9,0.58323]
[1736982875760,2.32201623,3429.0,3428.5,40.8]
[1736982875960,2.32201623,3428.6,3427.9,0.9148]
[1736982876163,0.58333,3428.4,3428.2,0.58336]
[1736982876362,0.4662,3428.5,3428.2,0.58336]
[1736982876658,1.04952,3428.5,3428.2,0.58336]
[1736982876955,0.4662,3428.5,3428.1,0.58337]
[1736982877162,0.4662,3428.5,3428.0,0.58338]
[1736982877163,0.58334,3428.4,3428.0,0.58338]
[1736982877362,3.2078,3428.3,3427.9,0.4568]
[1736982877659,2.32201623,3428.2,3428.0,0.58339]
[1736982878056,2.32201623,3428.2,3427.9,0.4568]
[1736982878457,0.58338,3428.1,3427.9,0.4568]
[1736982879856,0.58339,3428.1,3427.9,0.4568]
[1736982880258,0.58339,3428.0,3427.9,0.4568]
[1736982880459,0.58338,3428.1,3427.9,0.4568]
[1736982880765,0.58338,3428.1,3427.4,0.58349]
[1736982880962,0.58344,3427.8,3427.2,0.8892]
[1736982881364,0.58346,3427.7,3427.3,41.3835]
[1736982881558,0.58345,3427.7,3427.2,1.47272]
[1736982881863,0.58348,3427.5,3427.3,0.58351]
[1736982882056,0.58348,3427.5,3427.3,40.8]
[1736982882255,3.2078,3427.5,3426.7,3.2078]
[1736982882466,0.58355,3427.1,3426.8,0.58359]
[1736982882669,0.58353,3427.2,3426.9,41.38357]
[1736982882964,3.2078,3427.5,3426.9,41.38357]
[1736982882965,3.2078,3427.5,3426.9,40.8]
[1736982883160,0.58356,3427.1,3426.9,40.8]
[1736982883463,0.58356,3427.0,3426.9,40.8]
[1736982883664,1.02926,3427.0,3426.9,40.8]
[1736982885366,0.58361,3426.8,3426.6,0.8892]
[1736982885565,0.4457,3427.0,3426.6,0.8892]
[1736982885758,0.5836,3426.8,3426.6,1.47283]
[1736982885961,0.58359,3426.9,3426.6,1.47283]
[1736982886156,3.2078,3427.1,3427.0,0.58357]
[1736982886361,3.2078,3427.1,3426.6,0.8892]
[1736982886561,0.58358,3427.0,3426.7,0.58362]
[1736982887968,3.2078,3427.1,3426.6,0.8892]
[1736982888559,3.79135,3427.1,3427.0,40.8]
[1736982889366,3.2078,3427.1,3426.6,1.47283]
[1736982889573,0.5836,3426.9,3426.6,1.47283]
[1736982889771,3.79142,3426.7,3426.6,0.8892]
[1736982889970,3.2078,3426.7,3426.6,42.27283]
[1736982890163,3.2078,3426.7,3426.6,41.6892]
[1736982890368,3.79142,3426.7,3426.6,41.6892]
[1736982891068,3.2078,3426.7,3426.6,41.6892]
[1736982891266,3.79142,3426.7,3426.6,40.8]
[1736982891467,4.24662,3426.7,3426.6,40.8]
[1736982891662,4.24662,3426.7,3426.4,0.58365]
[1736982891970,4.24662,3426.7,3426.5,0.58365]
[1736982892171,4.24662,3426.7,3426.5,41.38365]
[1736982893669,3.663,3426.7,3426.6,0.58363]
[1736982894275,3.663,3426.7,3426.5,40.8]
[1736982894572,0.58363,3426.6,3426.5,40.8]
[1736982894972,3.663,3426.7,3426.5,41.38365]
[1736982894973,4.24662,3426.7,3426.5,41.38365]
[1736982895162,3.663,3426.7,3426.5,40.8]
[1736982895361,4.24662,3426.7,3426.5,40.8]
[1736982895674,4.24662,3426.7,3426.5,41.38365]
[1736982897466,4.24662,3426.7,3426.5,40.8]
[1736982897467,3.663,3426.7,3426.5,40.8]
[1736982897667,0.4552,3426.7,3426.6,0.58363]
[1736982897866,3.2078,3427.1,3426.5,40.8]
[1736982898066,0.58357,3427.0,3426.8,0.58359]
[1736982898569,0.58359,3426.9,3426.7,0.58362]
[1736982898972,3.2078,3427.1,3426.5,40.8]
[1736982899174,2.32201623,3427.0,3426.5,41.38365]
[1736982899362,0.58368,3426.3,3426.1,1.03701]
[1736982899564,1.0219,3426.2,3426.1,1.03702]
[1736982899874,1.0219,3426.2,3426.1,41.83702]
[1736982900368,1.0219,3426.2,3426.1,40.8]
[1736982900668,3.646,3426.2,3425.6,0.4677]
[1736982900873,0.58375,3426.0,3425.8,0.58376]
[1736982901063,0.58375,3426.0,3425.9,40.8]
[1736982901269,0.58373,3426.1,3425.9,41.38375]
[1736982901470,0.58373,3426.1,3425.9,0.58375]
[1736982902769,4.22971,3426.2,3425.7,40.8]
[1736982903270,0.58372,3426.1,3426.0,0.58373]
[1736982903471,3.646,3426.2,3425.7,40.8]
[1736982903669,3.646,3426.2,3426.1,0.58372]
[1736982904371,3.2078,3426.6,3426.5,0.58365]
[1736982904569,3.79143,3426.6,3426.5,0.58365]
[1736982904772,0.58366,3426.5,3426.3,0.58367]
[1736982904968,3.2078,3426.6,3426.3,0.58367]
[1736982905167,0.58366,3426.5,3426.3,0.58367]
[1736982906575,3.2078,3427.0,3426.9,0.58357]
[1736982906784,3.2078,3427.0,3426.9,41.38357]
[1736982908371,0.58355,3427.1,3426.9,41.38357]
[1736982908372,0.58355,3427.1,3427.0,0.58357]
[1736982908574,0.58355,3427.1,3427.0,1.06287]
[1736982908779,1.02464,3427.2,3427.0,0.4793]
[1736982909078,1.02464,3427.2,3427.0,1.06286]
[1736982909279,0.4411,3427.2,3427.0,1.06286]
[1736982909571,5.52981623,3427.4,3427.0,0.4793]
[1736982909572,3.2078,3427.4,3427.0,0.4793]
[1736982909775,3.2078,3427.4,3427.3,0.58351]
[1736982910567,3.79131,3427.4,3427.2,0.58352]
[1736982911167,3.2078,3427.4,3427.3,0.58351]
[1736982911376,0.58347,3427.6,3427.4,0.58349]
[1736982911880,2.32201623,3427.7,3427.6,0.58346]
[1736982912077,0.4472,3427.8,3427.1,0.9397]
[1736982912375,3.2078,3427.9,3427.8,0.58343]
[1736982912878,3.79121,3427.9,3427.7,0.58344]
[1736982913176,3.2078,3427.9,3427.2,1.45884]
[1736982913372,3.2078,3427.9,3427.3,0.58351]
[1736982913777,3.2078,3427.9,3427.7,0.58343]
[1736982913976,3.2078,3427.9,3427.8,0.58343]
[1736982915682,6.58946623,3428.3,3428.1,0.58337]
[1736982915981,6.58947623,3428.3,3427.4,4.66654]
[1736982916580,6.58947623,3428.3,3428.1,0.58338]
[1736982916785,3.6841,3428.3,3428.2,0.58336]
[1736982919082,4.26745,3428.3,3428.1,0.58337]
[1736982919283,3.6841,3428.3,3428.1,0.58337]
[1736982919677,3.6841,3428.3,3427.8,1.438]
[1736982919883,0.58337,3428.2,3428.1,0.58338]
[1736982920083,0.58338,3428.1,3427.9,0.58341]
[1736982920285,0.58337,3428.2,3427.8,42.238]
[1736982920485,0.58337,3428.2,3428.0,0.58338]
[1736982920691,6.00611623,3428.3,3427.8,1.438]
[1736982920891,0.58339,3428.1,3427.9,0.58341]
[1736982921386,1.45854,3427.9,3427.1,0.58354]
[1736982921694,2.32201623,3427.9,3427.6,0.58346]
[1736982921892,0.58345,3427.7,3427.6,0.58346]
[1736982922087,2.32201623,3427.9,3427.6,0.58346]
[1736982922283,0.58344,3427.8,3427.6,0.58345]
[1736982922493,2.90543623,3427.9,3427.7,0.58344]
[1736982922687,0.58342,3427.9,3427.0,6.00381623]
[1736982922986,0.58342,3427.9,3427.7,0.58343]
[1736982923888,3.2078,3428.0,3427.2,1.45884]
[1736982924088,3.2078,3428.0,3427.8,0.58342]
[1736982924391,0.58341,3427.9,3427.7,0.58344]
[1736982924589,3.2078,3428.0,3427.8,0.58343]
[1736982924786,3.7912,3428.0,3427.8,0.58343]
[1736982925388,0.58343,3427.8,3427.2,1.45884]
[1736982925587,5.52981623,3427.6,3427.0,3.6818]
[1736982925887,1.06728,3427.5,3427.3,0.5835]
[1736982926091,0.9404,3427.5,3427.0,3.6818]
[1736982926391,0.58351,3427.4,3427.2,0.58352]
[1736982927091,0.58351,3427.4,3427.1,0.58355]
[1736982927291,0.58351,3427.4,3427.3,0.58351]
[1736982927785,0.9404,3427.5,3427.3,0.58351]
[1736982927786,1.52389,3427.5,3427.3,0.58351]
[1736982927987,0.5835,3427.4,3427.3,0.58351]
[1736982928185,0.5835,3427.4,3427.0,0.474]
[1736982928186,0.4566,3427.5,3427.4,0.5835]
[1736982929594,0.58344,3427.8,3427.1,1.45888]
[1736982929798,1.04644,3427.8,3427.7,0.58345]
[1736982930188,0.463,3427.8,3427.7,0.58345]
[1736982930397,3.2078,3428.0,3427.9,0.58341]
[1736982930688,0.463,3428.2,3428.1,0.58338]
[1736982931395,0.463,3428.2,3428.0,0.58339]
[1736982931396,1.04637,3428.2,3428.0,0.58339]
[1736982931797,0.463,3428.2,3428.1,0.58338]
[1736982932091,0.463,3428.2,3428.1,1.02268]
[1736982932297,1.04636,3428.2,3428.1,1.47958]
[1736982932487,0.463,3428.2,3428.1,1.47958]
[1736982933489,0.00189442,3428.3,3428.1,0.8962]
[1736982933689,0.00189442,3428.3,3428.2,0.58336]
[1736982939495,1.87328,3429.5,3428.2,0.58336]
[1736982939496,0.58312,3429.7,3428.2,11.68981623]
[1736982939797,4.1136,3429.9,3429.7,0.58311]
[1736982940002,4.1136,3429.9,3429.3,2.32201623]
[1736982940198,3.2078,3429.9,3429.8,41.38309]
[1736982940700,0.4501,3430.3,3429.8,40.8]
[1736982940901,0.4501,3430.3,3430.0,0.58304]
[1736982941095,1.0331,3430.3,3429.9,1.03846]
[1736982941401,1.0331,3430.3,3429.9,0.4554]
[1736982941601,0.58303,3430.2,3429.9,0.4554]
[1736982941803,1.03312,3430.3,3429.9,1.03846]
[1736982942190,3.2078,3430.0,3429.2,3.2078]
[1736982942392,3.2078,3430.0,3429.2,3.6632]
[1736982942393,2.32201623,3429.9,3429.2,3.6632]
[1736982942802,3.2078,3430.0,3428.9,1.06434]
[1736982942803,0.58317,3429.4,3428.9,1.06434]
[1736982943003,3.2078,3429.5,3428.9,0.9365]
[1736982943203,0.4389,3429.3,3428.9,0.9365]
[1736982943401,1.02209,3429.3,3428.9,1.51974]
[1736982943594,1.02209,3429.3,3428.9,0.9365]
[1736982943794,0.4389,3429.3,3428.9,0.9365]
[1736982943994,0.4389,3429.3,3428.9,1.51974]
[1736982944195,0.58319,3429.2,3428.9,0.9365]
[1736982944391,0.58322,3429.1,3428.9,0.9365]
[1736982944901,1.02208,3429.3,3429.0,0.58322]
[1736982945298,1.02208,3429.3,3428.9,1.51974]
[1736982945610,1.02208,3429.3,3429.0,0.58322]
[1736982945901,4.22988,3429.3,3429.0,0.58322]
[1736982946105,4.22988,3429.3,3428.9,0.9365]
[1736982946608,0.5832,3429.2,3428.9,0.9365]
[1736982946792,3.6467,3429.3,3428.9,0.4811]
[1736982946793,0.58322,3429.0,3428.9,0.4811]
[1736982947000,0.58322,3429.0,3428.6,40.8]
[1736982947001,0.58328,3428.7,3428.6,40.8]
[1736982947198,0.58329,3428.6,3428.5,0.4716]
[1736982947399,1.06319,3428.6,3428.5,0.4716]
[1736982947694,1.06319,3428.6,3428.5,40.8]
[1736982948401,0.58333,3428.4,3428.3,0.475]
[1736982948600,0.4799,3428.6,3428.1,0.4708]
[1736982948601,0.58336,3428.3,3428.1,0.4708]
[1736982948800,0.58336,3428.3,3428.2,40.8]
[1736982949402,0.4799,3428.6,3428.2,40.8]
[1736982949601,0.58334,3428.3,3428.2,40.8]
[1736982950706,1.0632,3428.6,3428.3,0.58334]
[1736982950900,0.4799,3428.6,3428.2,41.38335]
[1736982951204,1.0632,3428.6,3428.2,41.38335]
[1736982951611,0.58331,3428.5,3428.2,41.38335]
[1736982953102,1.0632,3428.6,3428.3,0.58333]
[1736982955507,0.4799,3428.6,3428.2,40.8]
[1736982955709,0.58331,3428.5,3428.2,41.38335]
[1736982956911,0.58334,3428.3,3428.2,40.8]
[1736982957708,0.4799,3428.6,3428.2,40.8]
[1736982958009,1.0632,3428.6,3428.3,0.58333]
[1736982958312,1.0632,3428.6,3428.2,40.8]
[1736982958618,1.0632,3428.6,3428.3,0.58334]
[1736982958808,0.58333,3428.4,3428.2,40.8]
[1736982959003,0.58333,3428.4,3428.2,41.38336]
[1736982959508,0.4799,3428.6,3428.2,40.8]
[1736982959709,0.58334,3428.3,3428.2,40.8]
[1736982961106,0.58332,3428.5,3428.2,41.38336]
[1736982961310,0.4799,3428.6,3428.2,40.8]
[1736982961610,0.4799,3428.6,3428.4,0.58332]
[1736982962306,0.4799,3428.6,3428.5,0.4836]
[1736982962711,1.06319,3428.6,3428.5,0.4836]
[1736982962913,0.4799,3428.6,3428.5,0.4836]
[1736982963212,0.4799,3428.6,3428.5,1.06691]
[1736982963607,1.04922,3429.1,3428.5,0.4836]
[1736982963809,6.1738,3429.3,3428.6,0.4636]
[1736982964012,3.2078,3429.3,3429.2,0.58319]
[1736982964514,3.2078,3429.3,3429.2,41.38319]
[1736982965108,0.58315,3429.5,3429.3,0.58317]
[1736982966417,0.58317,3429.3,3429.2,40.8]
[1736982967517,0.58317,3429.3,3429.1,0.58321]
[1736982967711,3.2078,3429.3,3428.8,0.4625]
[1736982967915,0.58324,3428.9,3428.8,0.4625]
[1736982968412,4.26104,3428.9,3428.8,0.4625]
[1736982969116,0.58328,3428.7,3428.6,0.4636]
[1736982969316,0.58328,3428.7,3428.6,1.04689]
[1736982969520,3.6778,3428.9,3428.6,1.04689]
[1736982969815,0.58328,3428.7,3428.6,0.4636]
[1736982970117,0.5833,3428.6,3428.4,1.03342]
[1736982970517,0.58331,3428.5,3428.4,0.4501]
[1736982970717,0.5833,3428.6,3428.4,1.03343]
[1736982972018,3.6778,3428.9,3428.4,0.4501]
[1736982972319,0.58327,3428.8,3428.6,0.58329]
[1736982973515,0.58327,3428.8,3428.7,40.8]
[1736982974230,0.58331,3428.5,3428.4,0.58332]
[1736982974825,0.58331,3428.5,3428.4,40.8]
[1736982975324,0.58326,3428.8,3428.5,0.5833]
[1736982975623,0.58329,3428.6,3428.5,0.5833]
[1736982975824,0.58331,3428.5,3428.4,41.38332]
[1736982979124,3.79111,3428.5,3428.4,41.38332]
[1736982979325,3.79111,3428.5,3428.4,40.8]
[1736982980020,3.79111,3428.5,3428.4,41.38333]
[1736982980323,3.79111,3428.5,3428.4,40.8]
[1736982983522,3.79111,3428.5,3428.4,41.38333]
[1736982985623,3.79111,3428.5,3428.4,40.8]
[1736982986422,3.2078,3428.5,3428.2,0.4493]
[1736982986624,0.58334,3428.3,3428.2,0.4493]
[1736982986828,1.02243,3428.4,3428.3,0.58334]
[1736982987130,0.4391,3428.4,3428.2,0.4493]
[1736982987331,3.2078,3428.5,3428.4,0.58333]
[1736982987728,4.23013,3429.0,3428.8,0.58324]
[1736982988031,0.4391,3429.0,3428.9,1.52314]
[1736982988232,0.58322,3429.1,3428.9,1.52314]
[1736982988526,2.966,3429.3,3428.9,1.52314]
[1736982988527,0.5832,3429.2,3429.0,0.58321]
[1736982988731,0.5832,3429.2,3429.0,1.06611]
[1736982989627,3.4051,3429.3,3429.0,0.4829]
[1736982989830,3.98829,3429.3,3429.1,0.5832]
[1736982990033,0.58319,3429.2,3429.1,0.5832]
[1736982990231,3.2078,3429.4,3429.0,0.4829]
[1736982990430,3.2078,3429.4,3429.3,0.58317]
[1736982991132,3.79096,3429.4,3429.3,0.58317]
[1736982992026,5.52981623,3429.4,3429.0,0.4829]
[1736982992236,0.58325,3428.9,3428.7,0.58327]
[1736982992533,1.02606,3428.8,3428.7,0.58327]
[1736982992731,0.58328,3428.7,3428.6,3.6851]
[1736982994025,3.79108,3428.7,3428.6,0.4773]
[1736982994328,3.34808623,3428.8,3428.6,1.06058]
[1736982994531,0.58328,3428.7,3428.6,0.4773]
[1736982995136,3.79102,3429.1,3429.0,0.58323]
[1736982996037,3.2078,3429.1,3429.0,0.58323]
[1736982996239,3.2078,3429.5,3429.4,0.58316]
[1736982996732,2.32201623,3430.3,3429.4,43.12201623]
[1736982997032,3.2078,3430.3,3429.6,1.45781]
[1736982997231,3.2078,3430.3,3429.8,3.2078]
[1736982997435,6.1738,3430.8,3429.7,0.4411]
[1736982997633,0.4839,3431.1,3430.5,5.52981623]
[1736982997831,0.58283,3431.3,3430.9,0.58289]
[1736982998029,5.28801623,3431.4,3430.6,0.8829]
[1736982998230,0.58288,3431.1,3430.8,0.58292]
[1736982998435,5.28801623,3431.4,3430.6,0.8829]
[1736982998631,3.54883,3431.4,3431.0,0.58287]
[1736982998839,3.54883,3431.4,3431.1,0.58287]
[1736982999036,2.966,3431.4,3430.9,3.2078]
[1736982999337,3.54882,3431.4,3430.9,3.2078]
[1736982999537,3.54882,3431.4,3431.1,0.58286]
[1736982999738,2.966,3431.4,3431.1,0.58286]
[1736983000032,2.966,3431.4,3430.9,3.2078]
[1736983000232,2.966,3431.4,3431.1,0.58286]